bitfinex/quotes_BTCUSD_20240906
["timestamp","ask_amount","ask_price","bid_price","bid_amount"]
[1725653414820,0.2293995,53850.0,53849.0,0.1839]
[1725653415029,0.0436985,53850.0,53849.0,0.2129]
[1725653415279,0.0436985,53850.0,53849.0,0.398604]
[1725653415493,0.000814,53857.0,53852.0,0.185691]
[1725653415494,0.16720307,53854.0,53852.0,0.185691]
[1725653415715,0.16720307,53856.0,53854.0,0.03]
[1725653415929,0.000814,53857.0,53856.0,0.026]
[1725653416614,0.14008591,53857.0,53856.0,0.026]
[1725653417046,0.32576191,53857.0,53856.0,0.01]
[1725653417262,0.32576191,53857.0,53856.0,0.026]
[1725653417263,0.557843,53857.0,53856.0,0.026]
[1725653417487,0.18749,53857.0,53856.0,0.36]
[1725653417714,0.19569301,53857.0,53856.0,0.359]
[1725653417948,0.19669301,53857.0,53856.0,0.359]
[1725653418183,0.19669301,53857.0,53856.0,0.5574]
[1725653418446,0.001814,53857.0,53856.0,0.61314]
[1725653418703,0.003814,53857.0,53856.0,0.62014]
[1725653419197,0.11518674,53857.0,53856.0,0.62114]
[1725653419449,0.11416385,53857.0,53856.0,0.61614]
[1725653420011,0.14203537,53857.0,53856.0,0.61614]
[1725653420235,0.17112004,53857.0,53856.0,0.61614]
[1725653420504,0.02989867,53857.0,53856.0,0.61414]
[1725653420724,0.14323376,53857.0,53856.0,0.62114]
[1725653420947,0.03189867,53857.0,53856.0,0.62014]
[1725653421158,0.03089867,53857.0,53856.0,0.61614]
[1725653421367,0.002814,53857.0,53856.0,0.61614]
[1725653421581,0.38040631,53861.0,53856.0,0.62014]
[1725653421822,0.38040631,53861.0,53857.0,0.0795829]
[1725653421823,0.29698953,53859.0,53857.0,0.0795829]
[1725653422086,0.371313,53863.0,53862.0,0.523159]
[1725653422087,0.05565007,53863.0,53862.0,0.523159]
[1725653422362,0.08348667,53866.0,53865.0,1.087247]
[1725653422594,0.000814,53867.0,53866.0,0.574936]
[1725653422824,0.000814,53867.0,53866.0,1.1453296]
[1725653423715,0.000814,53867.0,53866.0,1.5166206]
[1725653424197,0.000814,53867.0,53866.0,1.5146206]
[1725653424665,0.001814,53867.0,53866.0,1.5286206]
[1725653424895,0.001814,53867.0,53866.0,1.1513296]
[1725653424896,0.002814,53867.0,53866.0,1.1513296]
[1725653425112,0.002814,53867.0,53866.0,1.5366206]
[1725653425352,0.002814,53867.0,53866.0,1.5286206]
[1725653425559,0.001814,53867.0,53866.0,1.5146206]
[1725653425796,0.003814,53867.0,53866.0,1.5376206]
[1725653426013,0.003814,53867.0,53866.0,1.1663296]
[1725653426262,0.003814,53867.0,53866.0,1.5376206]
[1725653427036,0.000814,53867.0,53866.0,1.5146206]
[1725653427270,0.001814,53867.0,53866.0,1.1573296]
[1725653427781,0.03189185,53867.0,53866.0,1.1663296]
[1725653428252,0.03189185,53867.0,53866.0,1.5376206]
[1725653428532,0.03189185,53867.0,53866.0,1.1663296]
[1725653429016,0.03189185,53867.0,53866.0,1.5376206]
[1725653431306,0.03189185,53867.0,53866.0,1.9089116]
[1725653431563,0.00081,53872.0,53871.0,0.943142]
[1725653431794,0.00081,53872.0,53871.0,1.819199]
[1725653433263,0.185579,53886.0,53884.0,0.5146]
[1725653433766,0.01367914,53885.0,53884.0,0.5146]
[1725653433997,0.19925914,53885.0,53884.0,0.5861196]
[1725653434489,0.19925914,53885.0,53884.0,0.5971196]
[1725653434759,0.19925914,53885.0,53884.0,0.5861196]
[1725653434760,0.57041914,53885.0,53884.0,0.5861196]
[1725653435018,0.19925914,53885.0,53884.0,0.5861196]
[1725653435273,0.22833214,53885.0,53884.0,0.5991196]
[1725653436227,0.22833214,53885.0,53884.0,0.5861196]
[1725653436654,0.23033214,53885.0,53884.0,0.6091196]
[1725653436859,0.23033214,53885.0,53884.0,0.6101196]
[1725653437277,0.22933214,53885.0,53884.0,0.6011196]
[1725653437485,0.23033214,53885.0,53884.0,0.6101196]
[1725653437692,0.60149214,53885.0,53884.0,0.6101196]
[1725653438591,0.60149214,53885.0,53884.0,0.6091196]
[1725653438803,0.97265214,53885.0,53884.0,0.6091196]
[1725653439260,0.60149214,53885.0,53884.0,0.6091196]
[1725653439909,0.60149214,53885.0,53884.0,0.4105196]
[1725653440324,0.60119214,53885.0,53884.0,0.4105196]
[1725653440546,0.97235214,53885.0,53884.0,0.4105196]
[1725653440775,1.34351214,53885.0,53884.0,0.023]
[1725653440997,1.31443914,53885.0,53884.0,0.023]
[1725653441205,1.41443914,53885.0,53884.0,0.023]
[1725653441639,1.04327914,53885.0,53884.0,0.023]
[1725653441863,0.67211914,53885.0,53884.0,0.3565]
[1725653442071,0.67211914,53885.0,53884.0,0.39295]
[1725653442314,0.67211914,53885.0,53884.0,0.38395]
[1725653442315,1.04327914,53885.0,53884.0,0.38395]
[1725653442530,1.04127914,53885.0,53884.0,0.36995]
[1725653442743,0.67611914,53885.0,53884.0,0.36995]
[1725653442959,0.01837914,53885.0,53884.0,0.57255]
[1725653443184,0.01837914,53885.0,53884.0,1.1293]
[1725653443185,0.01337914,53885.0,53884.0,1.1293]
[1725653443403,0.00919439,53894.0,53891.0,0.3304]
[1725653443620,0.185554,53893.0,53891.0,0.3304]
[1725653443843,0.014496,53892.0,53891.0,0.3304]
[1725653444062,0.200052,53892.0,53891.0,0.3294]
[1725653444306,0.571164,53892.0,53891.0,0.3284]
[1725653444558,0.671164,53892.0,53891.0,0.36334]
[1725653444772,1.042276,53892.0,53891.0,0.36334]
[1725653445464,0.556678,53891.0,53890.0,0.008]
[1725653445676,0.556678,53891.0,53889.0,0.008]
[1725653445677,0.185563,53890.0,53889.0,0.008]
[1725653446148,0.19926243,53890.0,53889.0,0.008]
[1725653446363,0.57038843,53890.0,53889.0,0.008]
[1725653447451,0.57238843,53890.0,53889.0,0.031]
[1725653447675,0.57238843,53890.0,53889.0,0.06687]
[1725653447894,0.20126243,53890.0,53889.0,0.06687]
[1725653448105,0.01569943,53890.0,53889.0,0.06687]
[1725653448315,0.20126243,53890.0,53889.0,0.06687]
[1725653448578,0.20026243,53890.0,53889.0,0.05287]
[1725653449013,0.20126243,53890.0,53889.0,0.06687]
[1725653449232,0.57238843,53890.0,53889.0,0.06687]
[1725653449664,0.20026243,53890.0,53889.0,0.05787]
[1725653450131,0.20126243,53890.0,53889.0,0.06687]
[1725653451484,0.57238843,53890.0,53889.0,0.06687]
[1725653451704,0.20126243,53890.0,53889.0,0.06687]
[1725653452345,0.01569943,53890.0,53889.0,0.07287]
[1725653452600,0.01569943,53890.0,53889.0,0.07987]
[1725653453260,0.01569943,53890.0,53889.0,0.41127]
[1725653453672,0.371104,53894.0,53889.0,0.41127]
[1725653453921,0.285555,53893.0,53890.0,0.0596843]
[1725653454134,0.285555,53893.0,53890.0,0.0746843]
[1725653454539,0.185556,53892.0,53890.0,0.0746843]
[1725653456291,0.185556,53892.0,53890.0,0.0876843]
[1725653456542,0.186556,53892.0,53891.0,0.06525273]
[1725653456994,0.186556,53892.0,53890.0,0.022]
[1725653456995,0.03106722,53892.0,53890.0,0.022]
[1725653457215,1.07989175,53891.0,53890.0,0.022]
[1725653457435,0.9566684,53891.0,53890.0,0.022]
[1725653457651,1.0566684,53891.0,53890.0,0.013]
[1725653457898,1.02757365,53891.0,53890.0,0.013]
[1725653458341,0.65645465,53891.0,53890.0,0.013]
[1725653458549,0.65645465,53891.0,53889.0,0.1912]
[1725653458550,0.556689,53890.0,53889.0,0.1912]
[1725653458770,0.471119,53891.0,53889.0,0.1912]
[1725653458982,0.556689,53890.0,53889.0,0.1912]
[1725653459675,0.185563,53890.0,53889.0,0.1912]
[1725653459902,0.556689,53890.0,53889.0,0.24362]
[1725653460119,0.556689,53890.0,53889.0,0.58792]
[1725653460333,0.101,53891.0,53890.0,0.006]
[1725653460563,0.101,53891.0,53890.0,0.005]
[1725653460771,0.101,53891.0,53890.0,0.1213628]
[1725653460983,0.001,53891.0,53890.0,0.1363628]
[1725653461401,0.01372699,53891.0,53890.0,0.1363628]
[1725653461912,0.01252699,53891.0,53890.0,0.1363628]
[1725653462135,0.01252699,53891.0,53890.0,0.1353628]
[1725653462351,0.05634084,53893.0,53892.0,0.015]
[1725653462352,0.000814,53893.0,53892.0,0.015]
[1725653462570,0.000814,53893.0,53892.0,1.37843088]
[1725653462789,0.000814,53893.0,53892.0,1.94484288]
[1725653463442,0.000814,53893.0,53892.0,1.94284288]
[1725653464299,0.001814,53893.0,53892.0,1.94984288]
[1725653464507,0.001814,53893.0,53892.0,1.57873088]
[1725653465159,0.002814,53893.0,53892.0,0.85050688]
[1725653465387,0.002814,53893.0,53892.0,0.65095088]
[1725653465890,0.189366,53893.0,53892.0,0.65795088]
[1725653466150,0.187366,53893.0,53892.0,0.64395088]
[1725653466388,0.559471,53893.0,53892.0,0.66495088]
[1725653466602,0.559471,53893.0,53892.0,0.64695088]
[1725653466826,0.559471,53893.0,53892.0,0.63695088]
[1725653467032,0.61503369,53893.0,53892.0,0.65095088]
[1725653467244,0.560471,53893.0,53892.0,0.66195088]
[1725653467668,0.559471,53893.0,53892.0,0.65095088]
[1725653468095,0.558471,53893.0,53892.0,0.64795088]
[1725653468517,0.558071,53893.0,53892.0,0.64795088]
[1725653468732,0.559071,53893.0,53892.0,0.66195088]
[1725653468940,0.559071,53893.0,53892.0,0.64795088]
[1725653468941,0.66919638,53893.0,53892.0,0.64795088]
[1725653469476,0.94298129,53893.0,53892.0,0.65095088]
[1725653469704,0.94398129,53893.0,53892.0,0.66095088]
[1725653469933,1.05510667,53893.0,53892.0,0.46565088]
[1725653470596,1.08288802,53893.0,53892.0,0.46565088]
[1725653470806,1.34417778,53893.0,53892.0,0.13655088]
[1725653471016,0.97307278,53893.0,53892.0,0.13655088]
[1725653471262,0.97307278,53893.0,53892.0,0.14455088]
[1725653471498,1.34417778,53893.0,53892.0,0.13655088]
[1725653471708,1.34417778,53893.0,53892.0,0.024]
[1725653471709,1.46717778,53893.0,53892.0,0.024]
[1725653471920,1.44417778,53893.0,53892.0,0.024]
[1725653472149,1.07307278,53893.0,53892.0,0.024]
[1725653472356,1.07207278,53893.0,53892.0,0.014]
[1725653472572,0.68132032,53893.0,53890.0,0.00163]
[1725653472781,0.68132032,53893.0,53891.0,0.5201]
[1725653472782,0.85272158,53892.0,53891.0,0.5201]
[1725653473022,0.58575949,53892.0,53891.0,0.5201]
[1725653473263,0.59955584,53892.0,53891.0,0.5201]
[1725653473525,0.22844384,53892.0,53891.0,0.5201]
[1725653473736,0.22844384,53892.0,53891.0,0.5231]
[1725653473946,0.22844384,53892.0,53891.0,0.581773]
[1725653474406,0.60055584,53892.0,53891.0,0.588773]
[1725653474626,0.22944384,53892.0,53891.0,0.588773]
[1725653475099,0.04388784,53892.0,53891.0,0.588773]
[1725653475319,0.04388784,53892.0,53891.0,1.145451]
[1725653475531,0.15398681,53892.0,53891.0,1.147451]
[1725653475741,0.01379635,53892.0,53891.0,1.145451]
[1725653475951,0.01479635,53892.0,53891.0,1.145451]
[1725653476160,0.04388668,53892.0,53891.0,1.145451]
[1725653476373,0.01379635,53892.0,53891.0,1.138451]
[1725653476585,0.01579635,53892.0,53891.0,1.159451]
[1725653477024,0.0448866,53892.0,53891.0,1.159451]
[1725653477274,0.08922228,53894.0,53893.0,0.556656]
[1725653477493,0.186342,53900.0,53897.0,0.007]
[1725653477709,0.186342,53900.0,53895.0,0.3232]
[1725653477710,0.00081,53900.0,53899.0,0.003]
[1725653478134,0.02987306,53900.0,53899.0,0.003]
[1725653478349,0.02987306,53900.0,53899.0,0.3085733]
[1725653478779,0.02987306,53900.0,53899.0,0.1230413]
[1725653478780,0.03087306,53900.0,53899.0,0.1230413]
[1725653479230,0.14123512,53900.0,53899.0,0.6415733]
[1725653479441,0.03087306,53900.0,53899.0,0.6555733]
[1725653479676,0.03087306,53900.0,53899.0,0.6495733]
[1725653479897,0.03187306,53900.0,53899.0,0.8429733]
[1725653480328,0.03087306,53900.0,53899.0,1.2060373]
[1725653480540,0.03187306,53900.0,53899.0,1.2140373]
[1725653480749,0.03187306,53900.0,53899.0,0.6574413]
[1725653480972,0.188338,53900.0,53899.0,0.6574413]
[1725653481476,0.08629672,53900.0,53899.0,0.6574413]
[1725653481718,0.08729672,53900.0,53899.0,0.6714413]
[1725653481956,0.08529672,53900.0,53899.0,0.6574413]
[1725653482407,0.08629672,53900.0,53899.0,0.6634413]
[1725653482617,0.08529672,53900.0,53899.0,0.6634413]
[1725653482826,0.27182472,53900.0,53899.0,0.6734413]
[1725653483062,0.64288172,53900.0,53899.0,0.6704413]
[1725653483283,0.929452,53900.0,53899.0,0.4630413]
[1725653483548,0.558395,53900.0,53899.0,0.4630413]
[1725653483794,0.559395,53900.0,53899.0,0.4730413]
[1725653484470,0.930452,53900.0,53899.0,0.4730413]
[1725653484697,1.42639679,53900.0,53899.0,0.024]
[1725653484922,1.85971585,53900.0,53899.0,0.024]
[1725653485158,1.58865885,53900.0,53899.0,0.024]
[1725653485370,1.55965885,53900.0,53899.0,0.024]
[1725653485600,0.927745,53894.0,53893.0,0.00163]
[1725653485806,1.05683545,53894.0,53893.0,0.00163]
[1725653486014,1.41242365,53894.0,53893.0,0.00163]
[1725653486229,1.04132565,53894.0,53893.0,0.00163]
[1725653486653,1.18050197,53894.0,53893.0,0.00163]
[1725653486868,1.2095691,53894.0,53893.0,0.00163]
[1725653487085,1.07039278,53894.0,53893.0,0.00163]
[1725653487307,1.09948412,53894.0,53893.0,0.00163]
[1725653487520,1.04244406,53894.0,53893.0,0.00763]
[1725653488017,1.04344406,53894.0,53893.0,0.01463]
[1725653488434,1.04244406,53894.0,53893.0,0.00763]
[1725653488663,1.04244406,53894.0,53893.0,0.00163]
[1725653488878,1.04444406,53894.0,53893.0,0.02363]
[1725653489112,1.06744406,53894.0,53893.0,0.02363]
[1725653489315,1.46663457,53894.0,53893.0,0.01563]
[1725653489525,1.43754206,53894.0,53893.0,0.01563]
[1725653489751,1.43754206,53894.0,53893.0,0.00963]
[1725653489961,1.43854206,53894.0,53893.0,0.02363]
[1725653490171,1.44768521,53894.0,53893.0,0.02363]
[1725653490391,1.07658721,53894.0,53893.0,0.02363]
[1725653491467,1.04752008,53894.0,53893.0,0.02363]
[1725653492362,0.84236003,53894.0,53893.0,0.02363]
[1725653492823,1.44531047,53894.0,53893.0,0.02363]
[1725653493037,1.44612547,53894.0,53893.0,0.02363]
[1725653493475,1.66711237,53894.0,53893.0,0.02363]
[1725653493688,2.02353939,53894.0,53893.0,0.02363]
[1725653494357,1.97481943,53894.0,53893.0,0.02363]
[1725653494565,1.97381943,53894.0,53893.0,0.01563]
[1725653494779,1.97281943,53894.0,53893.0,0.00263]
[1725653495004,1.97981943,53894.0,53893.0,0.00263]
[1725653495220,1.98381943,53894.0,53893.0,0.00263]
[1725653495480,1.97981943,53894.0,53893.0,0.00263]
[1725653495985,2.00589199,53894.0,53893.0,0.00163]
[1725653496199,2.01289199,53894.0,53893.0,0.00263]
[1725653496406,2.01489199,53894.0,53893.0,0.00263]
[1725653496634,2.00847095,53894.0,53893.0,0.00263]
[1725653496858,1.99947095,53894.0,53893.0,0.00263]
[1725653497286,2.00347095,53894.0,53893.0,0.00263]
[1725653497494,2.01047095,53894.0,53893.0,0.00263]
[1725653497706,1.99547095,53894.0,53893.0,0.00163]
[1725653497925,1.62637295,53894.0,53893.0,0.00263]
[1725653498364,1.61937295,53894.0,53893.0,0.00163]
[1725653498818,1.62437295,53894.0,53893.0,0.00263]
[1725653499037,1.62837295,53894.0,53893.0,0.00263]
[1725653499253,1.62137295,53894.0,53893.0,0.00163]
[1725653499470,1.62137295,53894.0,53893.0,0.00263]
[1725653499471,1.78823658,53894.0,53893.0,0.00263]
[1725653499691,1.79523658,53894.0,53893.0,0.00263]
[1725653500329,1.76223658,53894.0,53893.0,0.00263]
[1725653500593,1.07970239,53894.0,53893.0,0.00263]
[1725653500804,0.20866676,53894.0,53893.0,0.00163]
[1725653501010,0.57976476,53894.0,53893.0,0.00163]
[1725653501212,0.35569644,53894.0,53893.0,0.00263]
[1725653501423,0.72679156,53894.0,53893.0,0.00263]
[1725653501640,0.57976476,53894.0,53893.0,0.00163]
[1725653502114,0.58376476,53894.0,53893.0,0.00263]
[1725653502331,0.63885878,53894.0,53893.0,0.00263]
[1725653502654,0.73885878,53894.0,53893.0,0.00263]
[1725653503495,0.34476078,53894.0,53893.0,0.033926]
[1725653503716,0.33476078,53894.0,53893.0,0.332926]
[1725653503942,0.36682979,53894.0,53893.0,0.332926]
[1725653504159,0.73892779,53894.0,53893.0,0.332926]
[1725653504378,0.73592779,53894.0,53893.0,0.332926]
[1725653504581,0.36382979,53894.0,53893.0,0.30563]
[1725653504787,0.36382979,53894.0,53893.0,0.30363]
[1725653505220,0.36482979,53894.0,53893.0,0.31063]
[1725653505632,0.33573577,53894.0,53893.0,0.31063]
[1725653505840,0.33573577,53894.0,53893.0,0.34911717]
[1725653506258,0.22201337,53894.0,53893.0,0.34911717]
[1725653506492,0.2309684,53894.0,53893.0,0.34911717]
[1725653507088,0.36993091,53894.0,53893.0,0.35211717]
[1725653507296,0.36893091,53894.0,53893.0,0.34511717]
[1725653507703,0.36993091,53894.0,53893.0,0.35311717]
[1725653508355,0.3309684,53894.0,53893.0,0.35311717]
[1725653508490,0.7020664,53894.0,53893.0,0.31263]
[1725653508686,0.3309684,53894.0,53893.0,0.31263]
[1725653509096,0.46993091,53894.0,53893.0,0.31263]
[1725653509300,1.07019065,53894.0,53893.0,0.31263]
[1725653509527,1.09319065,53894.0,53893.0,0.31263]
[1725653511173,1.09319065,53894.0,53893.0,0.36289771]
[1725653511408,0.44147568,53894.0,53893.0,0.36289771]
[1725653511624,0.22813809,53894.0,53893.0,0.56009771]
[1725653511829,0.22813809,53894.0,53893.0,0.87799771]
[1725653511830,0.11689379,53894.0,53893.0,0.87799771]
[1725653512267,0.10793876,53894.0,53893.0,0.87799771]
[1725653512469,0.10793876,53894.0,53893.0,0.88099771]
[1725653512722,0.00793876,53894.0,53893.0,1.07854971]
[1725653512926,0.00793876,53894.0,53893.0,1.44965471]
[1725653513309,0.001,53894.0,53893.0,1.44965471]
[1725653513516,0.001,53894.0,53893.0,1.07854971]
[1725653513724,0.00081,53900.0,53893.0,1.07854971]
[1725653513725,0.05562108,53898.0,53893.0,0.55544971]
[1725653513931,0.05562108,53898.0,53895.0,0.012]
[1725653514150,0.00704608,53897.0,53895.0,0.3299]
[1725653514351,0.00704608,53897.0,53896.0,0.1972]
[1725653514556,0.00704608,53897.0,53896.0,0.5151]
[1725653514854,0.06266716,53897.0,53896.0,0.5151]
[1725653515057,0.00704608,53897.0,53896.0,0.83347843]
[1725653515688,0.03106528,53898.0,53896.0,0.31837743]
[1725653515899,0.03106528,53898.0,53897.0,0.5271]
[1725653516104,0.03106528,53898.0,53897.0,0.715639]
[1725653516321,0.03106528,53898.0,53897.0,0.87388621]
[1725653516526,0.03006528,53898.0,53897.0,0.87388621]
[1725653516730,0.02906528,53898.0,53897.0,0.87388621]
[1725653517262,0.02906528,53898.0,53897.0,1.61604221]
[1725653517668,0.02906528,53898.0,53897.0,2.00112021]
[1725653517669,0.02988028,53898.0,53897.0,2.00112021]
[1725653517996,0.02988028,53898.0,53897.0,2.01512021]
[1725653518422,0.02988028,53898.0,53897.0,2.00112021]
[1725653518761,0.02988028,53898.0,53897.0,2.01512021]
[1725653518965,0.02988028,53898.0,53897.0,2.00112021]
[1725653520290,0.02988028,53898.0,53897.0,0.5441]
[1725653520528,0.6418484,53898.0,53897.0,0.014]
[1725653520750,1.300563,53898.0,53897.0,0.028]
[1725653520961,1.300563,53898.0,53897.0,0.014]
[1725653520962,1.45904738,53898.0,53897.0,0.014]
[1725653521194,1.46799185,53898.0,53897.0,0.028]
[1725653521456,1.46899185,53898.0,53897.0,0.028]
[1725653521700,1.46899185,53898.0,53897.0,0.014]
[1725653521898,0.927745,53894.0,53893.0,0.30163]
[1725653522111,1.07983729,53894.0,53893.0,0.30163]
[1725653522308,1.08721332,53894.0,53893.0,0.30163]
[1725653522516,0.68702303,53894.0,53893.0,0.30163]
[1725653522728,1.08721624,53894.0,53893.0,0.30163]
[1725653523341,1.05812103,53894.0,53893.0,0.30163]
[1725653523760,1.08718967,53894.0,53893.0,0.30163]
[1725653523980,0.13644467,53894.0,53893.0,0.332756]
[1725653524209,0.46090877,53894.0,53893.0,0.336756]
[1725653524427,0.27535977,53894.0,53893.0,0.336756]
[1725653524885,0.32199367,53894.0,53893.0,0.336756]
[1725653525348,1.08718967,53894.0,53893.0,0.30563]
[1725653525587,1.45828767,53894.0,53893.0,0.30163]
[1725653526338,1.06418967,53894.0,53893.0,0.30163]
[1725653526564,0.69309167,53894.0,53893.0,0.30163]
[1725653526824,0.32199367,53894.0,53893.0,0.333056]
[1725653527046,0.8320366,53894.0,53893.0,0.645756]
[1725653527283,0.8350366,53894.0,53893.0,0.640756]
[1725653527526,0.8350366,53894.0,53893.0,0.641756]
[1725653527766,0.69609167,53894.0,53893.0,0.641756]
[1725653528007,0.83204659,53894.0,53893.0,0.640756]
[1725653528244,0.69509167,53894.0,53893.0,0.643756]
[1725653528740,0.32399367,53894.0,53893.0,0.643756]
[1725653529233,0.13644467,53894.0,53893.0,0.832656]
[1725653529469,0.24761799,53894.0,53893.0,0.832656]
[1725653529713,0.13644467,53894.0,53893.0,0.832656]
[1725653529937,0.14761799,53894.0,53893.0,0.847656]
[1725653530179,0.03644467,53894.0,53893.0,0.847656]
[1725653530442,0.09203429,53894.0,53893.0,0.847656]
[1725653530691,0.03644467,53894.0,53893.0,0.847656]
[1725653531405,0.002,53894.0,53893.0,0.847656]
[1725653531874,0.00898814,53894.0,53893.0,0.847656]
[1725653532090,0.002,53894.0,53893.0,0.847656]
[1725653532542,0.002,53894.0,53893.0,1.033208]
[1725653532750,0.002,53894.0,53893.0,0.847656]
[1725653533372,0.002,53894.0,53893.0,1.033208]
[1725653534040,0.05639976,53898.0,53894.0,0.3221]
[1725653534247,0.00699232,53897.0,53896.0,0.3221]
[1725653534683,0.00699232,53897.0,53896.0,0.3371]
[1725653535105,0.00699232,53897.0,53896.0,0.3361]
[1725653535318,0.00699232,53897.0,53896.0,0.53375485]
[1725653535521,0.00699232,53897.0,53896.0,0.68734811]
[1725653535931,0.00699232,53897.0,53896.0,0.69434811]
[1725653535932,0.00799232,53897.0,53896.0,0.69434811]
[1725653536145,0.001,53897.0,53896.0,0.69434811]
[1725653536543,0.1,53900.0,53896.0,0.37349326]
[1725653536829,0.05555665,53902.0,53896.0,0.37349326]
[1725653536830,0.05555636,53903.0,53898.0,0.012]
[1725653537130,0.00701456,53899.0,53898.0,0.012]
[1725653537337,0.02906423,53903.0,53902.0,0.2129]
[1725653538289,0.02906423,53903.0,53902.0,0.535]
[1725653538493,0.02906423,53903.0,53902.0,0.549]
[1725653538753,0.02906423,53903.0,53902.0,0.6232531]
[1725653539248,0.02906423,53903.0,53902.0,0.6352531]
[1725653539887,0.02906423,53903.0,53902.0,0.6212531]
[1725653540257,0.02906423,53903.0,53902.0,0.6092531]
[1725653540483,0.02906423,53903.0,53902.0,0.6232531]
[1725653540819,0.02906423,53903.0,53902.0,0.6202531]
[1725653540957,0.02906423,53903.0,53902.0,0.6342531]
[1725653541345,0.1,53907.0,53904.0,0.007]
[1725653541346,0.38905642,53907.0,53904.0,0.007]
[1725653541551,0.185508,53906.0,53905.0,0.008]
[1725653543712,0.185508,53906.0,53905.0,0.021]
[1725653544383,0.24106436,53906.0,53905.0,0.029]
[1725653544501,0.2145704,53906.0,53905.0,0.029]
[1725653544717,0.2145704,53906.0,53905.0,0.09094253]
[1725653546199,0.64114276,53906.0,53905.0,0.09094253]
[1725653546388,0.5855864,53906.0,53905.0,0.09094253]
[1725653546589,0.2701472,53906.0,53905.0,0.09094253]
[1725653546974,0.0846392,53906.0,53905.0,0.09094253]
[1725653547208,0.0846392,53906.0,53905.0,0.42514253]
[1725653547209,0.0290624,53906.0,53905.0,0.42514253]
[1725653547426,0.0555768,53907.0,53905.0,0.42514253]
[1725653547427,0.0563868,53910.0,53909.0,0.200497]
[1725653547649,0.0563868,53910.0,53909.0,0.713997]
[1725653547650,0.00081,53910.0,53909.0,0.713997]
[1725653547867,0.00081,53910.0,53909.0,0.5285]
[1725653548294,0.00853511,53910.0,53909.0,0.5285]
[1725653549848,0.00081,53910.0,53909.0,0.5285]
[1725653550091,0.00901128,53910.0,53909.0,0.62434648]
[1725653550301,0.00878799,53910.0,53909.0,0.61034648]
[1725653550753,0.00878799,53910.0,53909.0,0.62434648]
[1725653550982,0.00878799,53910.0,53909.0,0.81784348]
[1725653551454,0.00878799,53910.0,53909.0,0.80984348]
[1725653551455,0.00058671,53910.0,53909.0,0.80984348]
[1725653551667,0.00058671,53910.0,53909.0,1.56383348]
[1725653552096,0.00058671,53910.0,53909.0,1.55183348]
[1725653552538,0.00058671,53910.0,53909.0,1.56583348]
[1725653552751,0.00058671,53910.0,53909.0,1.19483848]
[1725653552960,0.00058671,53910.0,53909.0,1.18083848]
[1725653553407,0.00058671,53910.0,53909.0,1.19483848]
[1725653553642,0.00058671,53910.0,53909.0,1.18083848]
[1725653553858,0.00058671,53910.0,53909.0,1.55183348]
[1725653554118,0.00058671,53910.0,53909.0,1.56583348]
[1725653554335,0.00058671,53910.0,53909.0,1.55183348]
[1725653554546,0.00058671,53910.0,53909.0,1.56583348]
[1725653554758,0.00058671,53910.0,53909.0,1.55183348]
[1725653555191,0.00058671,53910.0,53909.0,1.53783348]
[1725653555442,0.00058671,53910.0,53909.0,1.55183348]
[1725653556096,0.00058671,53910.0,53909.0,1.93682848]
[1725653556350,0.00058671,53910.0,53909.0,1.55183348]
[1725653556557,0.00058671,53910.0,53909.0,1.92282848]
[1725653556798,0.00058671,53910.0,53909.0,1.55183348]
[1725653557237,0.00058671,53910.0,53909.0,1.56583348]
[1725653557716,0.00058671,53910.0,53909.0,1.93682848]
[1725653557932,0.00058671,53910.0,53909.0,1.56583348]
[1725653558155,0.00058671,53910.0,53909.0,1.93682848]
[1725653558362,0.00058671,53910.0,53909.0,1.56583348]
[1725653559193,0.00058671,53910.0,53909.0,1.93682848]
[1725653564139,0.00058671,53910.0,53909.0,1.92282848]
[1725653564428,0.00058671,53910.0,53909.0,1.93682848]
[1725653565083,0.00058671,53910.0,53909.0,2.06081687]
[1725653565573,0.00058671,53910.0,53909.0,2.04681687]
[1725653565807,0.00058671,53910.0,53909.0,2.06081687]
[1725653566016,0.00058671,53910.0,53909.0,2.04681687]
[1725653566231,0.00058671,53910.0,53909.0,2.40381187]
[1725653566446,0.00058671,53910.0,53909.0,2.04681687]
[1725653566663,0.00058671,53910.0,53909.0,2.06081687]
[1725653566873,0.00058671,53910.0,53909.0,2.41781187]
[1725653567085,0.00058671,53910.0,53909.0,2.44581187]
[1725653567514,0.00058671,53910.0,53909.0,2.07481687]
[1725653567726,0.00058671,53910.0,53909.0,2.06081687]
[1725653567953,0.00058671,53910.0,53909.0,2.07481687]
[1725653568173,0.00058671,53910.0,53909.0,1.95245648]
[1725653569071,0.00058671,53910.0,53909.0,1.55346148]
[1725653569313,0.00058671,53910.0,53909.0,1.53946148]
[1725653569595,0.00058671,53910.0,53909.0,1.56746148]
[1725653569805,0.00058671,53910.0,53909.0,1.55346148]
[1725653570020,0.00058671,53910.0,53909.0,1.53946148]
[1725653570231,0.00058671,53910.0,53909.0,1.55346148]
[1725653570442,0.00058671,53910.0,53909.0,1.56746148]
[1725653570892,0.00058671,53910.0,53909.0,1.53946148]
[1725653571103,0.00058671,53910.0,53909.0,1.56746148]
[1725653572361,0.00058671,53910.0,53909.0,1.55346148]
[1725653572992,0.00036345,53910.0,53909.0,1.55346148]
[1725653573200,0.00036345,53910.0,53909.0,1.56746148]
[1725653573846,0.00036345,53910.0,53909.0,1.55346148]
[1725653573999,0.00036345,53910.0,53909.0,1.53946148]
[1725653574195,0.00036345,53910.0,53909.0,1.55346148]
[1725653574402,0.00036345,53910.0,53909.0,1.53946148]
[1725653574604,0.00036345,53910.0,53909.0,1.91045648]
[1725653574818,0.00036345,53910.0,53909.0,1.92445648]
[1725653575196,0.00036345,53910.0,53909.0,1.93845648]
[1725653575811,0.00036345,53910.0,53909.0,1.55346148]
[1725653576020,0.00036345,53910.0,53909.0,1.53946148]
[1725653576216,0.00036345,53910.0,53909.0,1.56746148]
[1725653578233,0.00036345,53910.0,53909.0,0.044628]
[1725653578480,0.00036345,53910.0,53909.0,0.037628]
[1725653578481,0.92783345,53910.0,53909.0,0.037628]
[1725653578702,1.46696633,53910.0,53909.0,0.029628]
[1725653578913,1.48996633,53910.0,53909.0,0.029628]
[1725653579129,1.58996633,53910.0,53909.0,0.029628]
[1725653579361,1.75621539,53910.0,53909.0,0.029628]
[1725653579613,1.58996633,53910.0,53909.0,0.015628]
[1725653579886,2.14849659,53910.0,53909.0,0.015628]